bitfinex/quotes_BTCUSD_20241022
["timestamp","ask_amount","ask_price","bid_price","bid_amount"]
[1729567094337,0.00247604,67470.0,67469.0,0.22725915]
[1729567096361,0.15069004,67470.0,67469.0,0.22725915]
[1729567105058,0.00247604,67470.0,67469.0,0.22725915]
[1729567105289,0.00247604,67470.0,67469.0,0.37547515]
[1729567105494,0.00247604,67470.0,67469.0,0.22725915]
[1729567106549,0.00247604,67470.0,67469.0,0.37547515]
[1729567106768,0.00247604,67470.0,67469.0,0.22725915]
[1729567107840,0.00247604,67470.0,67469.0,0.37547515]
[1729567108289,0.00247604,67470.0,67469.0,0.22725915]
[1729567108501,0.00247604,67467.0,67466.0,0.014]
[1729567108777,0.00247604,67467.0,67448.0,0.02320637]
[1729567108778,0.26571404,67459.0,67448.0,0.02320637]
[1729567109002,0.73291817,67459.0,67448.0,0.02320637]
[1729567109219,0.78848771,67459.0,67448.0,0.02320637]
[1729567109425,0.89873998,67459.0,67448.0,0.02320637]
[1729567109891,0.79069431,67459.0,67448.0,0.02320637]
[1729567110115,0.76864996,67459.0,67448.0,0.02320637]
[1729567110335,0.26571404,67459.0,67448.0,0.02320637]
[1729567110563,0.30980934,67459.0,67448.0,0.02320637]
[1729567110779,0.26571404,67459.0,67448.0,0.02320637]
[1729567111230,0.43470324,67459.0,67448.0,0.02320637]
[1729567115748,0.44133534,67459.0,67448.0,0.02320637]
[1729567115964,0.55598698,67459.0,67448.0,0.02320637]
[1729567126101,0.55598698,67459.0,67447.0,0.22203966]
[1729567126767,0.15571404,67459.0,67457.0,0.0779]
[1729567126993,0.15071404,67459.0,67457.0,0.0779]
[1729567127209,0.00247604,67459.0,67457.0,0.0779]
[1729567127641,0.00247604,67459.0,67458.0,0.092176]
[1729567131121,0.15071404,67459.0,67458.0,0.092176]
[1729567133238,0.00247604,67459.0,67458.0,0.092176]
[1729567134363,0.16471404,67459.0,67458.0,0.093176]
[1729567137628,0.24097764,67459.0,67458.0,0.093176]
[1729567138081,0.24097764,67459.0,67458.0,0.002676]
[1729567138082,0.24597764,67459.0,67458.0,0.002676]
[1729567138889,0.23197764,67459.0,67458.0,0.001676]
[1729567139466,0.23197764,67459.0,67458.0,0.004676]
[1729567139846,0.23197764,67459.0,67458.0,0.001676]
[1729567140060,0.23297764,67459.0,67458.0,0.011676]
[1729567143552,0.23397764,67459.0,67458.0,0.017676]
[1729567146461,0.15771404,67459.0,67458.0,0.017676]
[1729567148780,0.15271404,67459.0,67458.0,0.092976]
[1729567149008,0.002,67459.0,67458.0,0.092976]
[1729567149244,0.00447604,67459.0,67458.0,0.092976]
[1729567150387,0.00447604,67459.0,67458.0,0.241216]
[1729567151734,0.00447604,67459.0,67458.0,0.092976]
[1729567152156,0.00447604,67459.0,67458.0,0.241216]
[1729567152569,0.00447604,67459.0,67458.0,0.092976]
[1729567153660,0.00447604,67459.0,67458.0,0.241216]
[1729567153889,0.00447604,67459.0,67458.0,0.49828729]
[1729567154120,0.00447604,67459.0,67458.0,0.39017515]
[1729567154591,0.00347604,67459.0,67458.0,0.38017515]
[1729567155426,0.00247604,67459.0,67458.0,0.37417515]
[1729567155838,0.02947604,67459.0,67458.0,0.22693515]
[1729567156063,0.02947604,67459.0,67458.0,0.37517515]
[1729567157684,0.02947604,67459.0,67458.0,0.48328729]
[1729567157930,0.027,67459.0,67458.0,0.57708729]
[1729567158428,0.027,67459.0,67458.0,0.46897515]
[1729567158674,0.00247604,67461.0,67460.0,0.228635]
[1729567158877,0.00247604,67461.0,67460.0,0.48570629]
[1729567159833,0.000827,67466.0,67463.0,0.149229]
[1729567159834,0.00247604,67464.0,67463.0,0.149229]
[1729567160102,0.000827,67466.0,67465.0,0.33673714]
[1729567160330,0.000827,67466.0,67465.0,0.48569629]
[1729567161600,0.012827,67466.0,67465.0,0.48669629]
[1729567162040,0.023827,67466.0,67465.0,0.48769629]
[1729567162727,0.02630304,67466.0,67465.0,0.48769629]
[1729567163149,0.04383714,67466.0,67465.0,0.23135915]
[1729567163381,0.17452504,67466.0,67465.0,0.23035915]
[1729567163594,0.02630304,67466.0,67465.0,0.23035915]
[1729567166018,0.17452504,67466.0,67465.0,0.002]
[1729567166472,0.26265736,67466.0,67465.0,0.002]
[1729567166685,0.25065736,67466.0,67465.0,0.001]
[1729567166890,0.148233,67461.0,67460.0,0.0801]
[1729567167123,0.296456,67464.0,67460.0,0.22905915]
[1729567167364,0.148231,67462.0,67461.0,0.14895915]
[1729567167555,0.23268764,67462.0,67461.0,0.14895915]
[1729567168807,0.08445664,67462.0,67461.0,0.14895915]
[1729567169483,0.24668764,67462.0,67461.0,0.14895915]
[1729567169985,0.26068764,67462.0,67461.0,0.14895915]
[1729567172514,0.176231,67462.0,67461.0,0.14895915]
[1729567176695,0.028,67462.0,67461.0,0.14895915]
[1729567176890,0.176231,67462.0,67461.0,0.14895915]
[1729567177319,0.028,67462.0,67461.0,0.14895915]
[1729567179465,0.176231,67462.0,67461.0,0.14895915]
[1729567182252,0.028,67462.0,67461.0,0.14895915]
[1729567189823,0.028,67462.0,67458.0,0.001676]
[1729567189824,0.15571404,67459.0,67458.0,0.001676]
[1729567190247,0.26384968,67459.0,67458.0,0.001676]
[1729567191384,0.15571404,67459.0,67458.0,0.001676]
[1729567191618,0.15071404,67459.0,67458.0,0.001676]
[1729567192126,0.00247604,67459.0,67458.0,0.001676]
[1729567192365,0.00247604,67459.0,67458.0,0.76715315]
[1729567194130,0.00247604,67459.0,67458.0,0.76815315]
[1729567194361,0.00247604,67460.0,67459.0,0.148238]
[1729567194579,0.00247604,67460.0,67459.0,0.29719715]
[1729567198076,0.00247604,67460.0,67459.0,0.29819715]
[1729567199435,0.00247604,67460.0,67459.0,0.29985115]
[1729567205268,0.00247604,67460.0,67459.0,0.46874208]
[1729567205509,0.028,67462.0,67460.0,0.148235]
[1729567205510,0.00247604,67461.0,67460.0,0.148235]
[1729567205711,0.028,67462.0,67460.0,0.44543015]
[1729567205712,0.03047604,67462.0,67460.0,0.44543015]
[1729567205936,0.03047604,67462.0,67461.0,0.29719215]
[1729567206171,0.028,67462.0,67461.0,0.29819215]
[1729567206401,0.028,67462.0,67461.0,0.49689215]
[1729567209280,0.028,67462.0,67461.0,0.50800036]
[1729567212470,0.028,67462.0,67461.0,1.20800036]
[1729567212621,0.028,67462.0,67461.0,1.20799603]
[1729567214315,0.028,67462.0,67461.0,0.50799603]
[1729567214961,0.028,67462.0,67461.0,0.48499603]
[1729567216466,0.028,67462.0,67461.0,0.59305557]
[1729567216916,0.028,67462.0,67461.0,0.59305577]
[1729567218415,0.028,67462.0,67461.0,0.59305545]
[1729567228140,0.028,67462.0,67461.0,0.59306698]
[1729567228619,0.028,67462.0,67461.0,0.58195377]
[1729567228861,0.028,67462.0,67461.0,0.59306753]
[1729567230909,0.028,67462.0,67461.0,0.63937376]
[1729567231394,0.028,67462.0,67461.0,0.59306753]
[1729567231621,0.028,67462.0,67461.0,0.60817718]
[1729567232064,0.028,67462.0,67461.0,0.60817809]
[1729567232513,0.028,67462.0,67461.0,0.65448439]
[1729567232866,0.028,67462.0,67461.0,0.60817809]
[1729567233970,0.028,67462.0,67461.0,0.65448625]
[1729567234422,0.028,67462.0,67461.0,0.65448875]
[1729567235312,0.028,67462.0,67461.0,0.60817809]
[1729567236700,0.028,67462.0,67461.0,0.65615041]
[1729567237602,0.028,67462.0,67461.0,0.16479549]
[1729567237828,0.028,67462.0,67461.0,0.27285711]
[1729567238074,0.028,67462.0,67461.0,0.42109011]
[1729567243501,0.028,67462.0,67461.0,0.53979011]
[1729567245115,0.014,67462.0,67461.0,0.53979011]
[1729567245329,0.028,67462.0,67461.0,0.53979011]
[1729567245771,0.014,67462.0,67461.0,0.53979011]
[1729567245977,0.026,67462.0,67461.0,0.53979011]
[1729567246175,0.014,67462.0,67461.0,0.53979011]
[1729567246382,0.000827,67466.0,67465.0,0.148225]
[1729567246597,0.000827,67466.0,67465.0,0.40524577]
[1729567246805,0.000827,67466.0,67465.0,0.41856384]
[1729567247657,0.000827,67466.0,67465.0,0.46488051]
[1729567247896,0.005827,67466.0,67465.0,0.46488051]
[1729567248983,0.011827,67466.0,67465.0,0.46488051]
[1729567249208,0.011827,67466.0,67465.0,0.56678051]
[1729567249935,0.011827,67466.0,67465.0,0.77866609]
[1729567250151,0.011827,67466.0,67465.0,0.84533704]
[1729567250372,0.011827,67466.0,67465.0,0.67060447]
[1729567250593,0.011827,67466.0,67465.0,0.7347431]
[1729567251058,0.011827,67466.0,67465.0,0.7297431]
[1729567253410,0.011827,67466.0,67465.0,0.66308051]
[1729567253823,0.011827,67466.0,67465.0,0.67060447]
[1729567254028,0.011827,67466.0,67465.0,0.66808051]
[1729567254235,0.011827,67466.0,67465.0,0.67060447]
[1729567255751,0.011827,67466.0,67465.0,0.66808051]
[1729567256180,0.011827,67466.0,67465.0,0.66308051]
[1729567256382,0.011827,67466.0,67465.0,0.66560447]
[1729567257714,0.011827,67466.0,67465.0,0.67060447]
[1729567259848,0.011827,67466.0,67465.0,0.66808051]
[1729567260358,0.011827,67466.0,67465.0,1.37060447]
[1729567260566,0.011827,67466.0,67465.0,1.36308051]
[1729567260915,0.011827,67466.0,67465.0,1.25501889]
[1729567261120,0.011827,67466.0,67465.0,1.36308051]
[1729567262512,0.011827,67466.0,67465.0,0.66308051]
[1729567264775,0.011827,67466.0,67465.0,1.36308051]
[1729567265833,0.011827,67466.0,67465.0,0.66308051]
[1729567266071,0.01164859,67466.0,67465.0,0.66308051]
[1729567275645,0.01164859,67466.0,67465.0,0.65808051]
[1729567285308,0.01164859,67466.0,67465.0,0.56478051]
[1729567287516,0.01164859,67466.0,67465.0,0.63144516]
[1729567287737,0.01164859,67466.0,67465.0,0.63309716]
[1729567289428,0.01164859,67466.0,67465.0,0.56643251]
[1729567291441,0.01164859,67466.0,67465.0,0.65531871]
[1729567292331,0.01164859,67466.0,67465.0,0.65536663]
[1729567293445,0.01164859,67466.0,67465.0,0.65538868]
[1729567294552,0.01164859,67466.0,67465.0,0.56643251]
[1729567295447,0.01164859,67466.0,67465.0,0.67762772]
[1729567298563,0.01164859,67466.0,67465.0,0.67766635]
[1729567309701,0.01164859,67466.0,67465.0,0.68879067]
[1729567312635,0.01164859,67466.0,67465.0,0.69079067]
[1729567313569,0.01164859,67466.0,67465.0,0.69079292]
[1729567314881,0.01164859,67466.0,67465.0,0.68879292]
[1729567315773,0.01164859,67466.0,67465.0,0.69079292]
[1729567316018,0.01164859,67466.0,67465.0,0.68879292]
[1729567318379,0.01164859,67466.0,67465.0,0.6776686]
[1729567318611,0.01164859,67466.0,67465.0,0.68879485]
[1729567320996,0.01164859,67466.0,67465.0,0.57755698]
[1729567321158,0.01164859,67466.0,67465.0,0.68879575]
[1729567321767,0.01164859,67466.0,67465.0,0.67767128]
[1729567323877,0.01164859,67466.0,67465.0,0.49270966]
[1729567324110,0.01164859,67466.0,67465.0,0.46970966]
[1729567324111,0.01412463,67466.0,67465.0,0.46970966]
[1729567324551,0.01412463,67466.0,67465.0,0.44747291]
[1729567324769,0.01412463,67466.0,67465.0,0.40115624]
[1729567325444,0.01412463,67466.0,67465.0,0.31215422]
[1729567326323,0.01412463,67466.0,67465.0,0.35851061]
[1729567327001,0.01164859,67466.0,67465.0,0.46381061]
[1729567328150,0.01164859,67466.0,67465.0,0.46581061]
[1729567328367,0.01164859,67466.0,67465.0,0.46381061]
[1729567335788,0.01164859,67466.0,67465.0,0.55279933]
[1729567337152,0.01164859,67466.0,67465.0,1.16381061]
[1729567338463,0.01164859,67466.0,67465.0,0.46381061]
[1729567348312,0.01117392,67466.0,67465.0,0.55279287]
[1729567348991,0.01117392,67466.0,67465.0,1.25279287]
[1729567349184,0.01117392,67466.0,67465.0,1.25279284]
[1729567349939,0.01117392,67466.0,67465.0,0.55279284]
[1729567358363,0.01117392,67466.0,67465.0,0.46381061]
[1729567375954,0.01117392,67466.0,67465.0,0.38151061]
[1729567396001,0.01117392,67466.0,67465.0,0.4895412]
[1729567402327,0.00517392,67466.0,67465.0,0.4895412]
[1729567402529,0.00017392,67466.0,67465.0,0.4895412]
[1729567402834,0.01117392,67466.0,67465.0,0.4895412]
[1729567403249,0.00617392,67466.0,67465.0,0.4895412]
[1729567403654,0.01117392,67466.0,67465.0,0.60078956]
[1729567404035,0.00517392,67466.0,67465.0,0.60078956]
[1729567404239,0.00517392,67466.0,67465.0,0.70882015]
[1729567404499,0.01017392,67466.0,67465.0,0.59957179]
[1729567404852,0.00517392,67466.0,67465.0,0.59757179]
[1729567405075,0.01017392,67466.0,67465.0,0.59757179]
[1729567406408,0.01017392,67466.0,67465.0,0.4895412]
[1729567407100,0.01017392,67466.0,67465.0,0.59757179]
[1729567407549,0.01017392,67466.0,67465.0,0.4895412]
[1729567407766,0.01017392,67466.0,67465.0,0.59757179]
[1729567407984,0.01017392,67466.0,67465.0,0.38151061]
[1729567408206,0.01017392,67466.0,67465.0,0.4895412]
[1729567408625,0.01017392,67466.0,67465.0,0.59757179]
[1729567411217,0.01017392,67466.0,67465.0,0.4895412]
[1729567417913,0.01017392,67466.0,67465.0,0.38151061]
[1729567418128,0.01017392,67466.0,67465.0,0.4895412]
[1729567418545,0.01017392,67466.0,67465.0,0.60072038]
[1729567418772,0.01017392,67466.0,67465.0,0.6007204]
[1729567421395,0.01017392,67466.0,67465.0,0.4895412]
[1729567426779,0.01017392,67466.0,67465.0,0.47622313]
[1729567427006,0.01017392,67466.0,67465.0,0.48707055]
[1729567430191,0.01017392,67466.0,67465.0,0.48907055]
[1729567432465,0.01017392,67466.0,67465.0,0.48707055]
[1729567440833,0.01017392,67466.0,67465.0,0.59830075]
[1729567447745,0.01017392,67466.0,67465.0,0.48707055]
[1729567450655,0.01017392,67466.0,67465.0,0.57603855]
[1729567452465,0.01264996,67466.0,67465.0,0.35603996]
[1729567452696,0.01264996,67466.0,67465.0,0.01249942]
[1729567452697,0.36492106,67466.0,67465.0,0.01249942]
[1729567453408,0.36492106,67466.0,67465.0,0.001652]
[1729567453655,0.36992106,67466.0,67465.0,0.001652]
[1729567453902,0.37492106,67466.0,67465.0,0.01070272]
[1729567454141,0.63807235,67466.0,67465.0,0.001652]
[1729567454355,0.64939383,67466.0,67465.0,0.001652]
[1729567454599,0.53845994,67466.0,67465.0,0.001652]
[1729567454808,0.54745994,67466.0,67465.0,0.001652]
[1729567455264,0.45932514,67466.0,67465.0,0.001652]
[1729567455530,0.42607604,67466.0,67465.0,0.001652]
[1729567455765,0.35067196,67466.0,67465.0,0.001652]
[1729567455987,0.33767196,67466.0,67465.0,0.001652]
[1729567456455,0.33867196,67466.0,67465.0,0.001652]
[1729567456662,0.46063013,67466.0,67465.0,0.001652]
[1729567456889,0.46263013,67466.0,67465.0,0.001652]
[1729567458318,0.46931268,67466.0,67465.0,0.001652]
[1729567460140,0.46831268,67466.0,67465.0,0.001652]
[1729567460571,0.46931268,67466.0,67465.0,0.001652]
[1729567460779,0.46831268,67466.0,67465.0,0.001652]
[1729567461005,0.46731268,67466.0,67465.0,0.001652]
[1729567461211,0.46831268,67466.0,67465.0,0.001652]
[1729567461507,0.46931268,67466.0,67465.0,0.001652]
[1729567461983,0.46831268,67466.0,67465.0,0.001652]
[1729567462829,0.46931268,67466.0,67465.0,0.001652]
[1729567475753,0.46831268,67466.0,67465.0,0.001652]
[1729567476158,0.46931268,67466.0,67465.0,0.001652]
[1729567480660,0.46831268,67466.0,67465.0,0.001652]
[1729567481087,0.46931268,67466.0,67465.0,0.014652]
[1729567481516,0.46831268,67466.0,67465.0,0.014652]
[1729567481932,0.00247604,67450.0,67449.0,0.227408]
[1729567482074,0.00247604,67450.0,67449.0,0.38516067]
[1729567483378,0.00247604,67450.0,67449.0,0.38616067]
[1729567483579,0.01647604,67450.0,67449.0,0.15875267]
[1729567483781,0.02947604,67450.0,67449.0,0.15875267]
[1729567484352,0.03424854,67450.0,67449.0,0.01049267]
[1729567484559,0.04824854,67450.0,67449.0,0.01049267]
[1729567485405,0.03424854,67450.0,67449.0,0.00949267]
[1729567485865,0.04824854,67450.0,67446.0,0.25629659]
[1729567486079,0.04824854,67450.0,67449.0,0.00949413]
[1729567486320,0.04824854,67450.0,67447.0,0.148264]
[1729567486533,0.04824854,67450.0,67449.0,0.00949413]
[1729567486762,0.03424854,67450.0,67447.0,0.148264]
[1729567487006,0.03424854,67450.0,67449.0,0.001652]
[1729567487241,0.04524854,67450.0,67449.0,0.001652]
[1729567487663,0.03424854,67450.0,67449.0,0.01114613]
[1729567487790,0.03424854,67450.0,67449.0,0.001652]
[1729567488013,0.01647604,67450.0,67449.0,0.00946495]
[1729567488225,0.01647604,67450.0,67447.0,0.148264]
[1729567488458,0.03047604,67450.0,67447.0,0.148264]
[1729567488895,0.03047604,67450.0,67448.0,0.00948926]
[1729567489582,0.01647604,67450.0,67448.0,0.00948926]
[1729567489826,0.03047604,67450.0,67448.0,0.00948926]
[1729567490038,0.01647604,67450.0,67448.0,0.00948926]
[1729567490255,0.01447604,67450.0,67448.0,0.00948926]
[1729567490475,0.06109854,67450.0,67448.0,0.00948926]
[1729567490702,0.04909854,67450.0,67448.0,0.00948926]
[1729567490934,0.04909854,67450.0,67448.0,0.15775126]
[1729567491151,0.06209854,67450.0,67448.0,0.15775126]
[1729567491380,0.02153505,67449.0,67448.0,0.15775126]
[1729567491592,0.07609854,67450.0,67448.0,0.15775126]
[1729567491829,0.07609854,67450.0,67448.0,0.00948926]
[1729567492045,0.22203966,67449.0,67448.0,0.00948926]
[1729567492277,0.00247604,67445.0,67444.0,0.001652]
[1729567494475,0.01147604,67445.0,67444.0,0.001652]
[1729567495134,0.15974404,67445.0,67444.0,0.001652]
[1729567495353,0.17074404,67445.0,67444.0,0.001652]
[1729567497086,0.46087463,67445.0,67444.0,0.001652]
[1729567497311,0.77813142,67445.0,67444.0,0.001652]
[1729567497515,0.88878277,67445.0,67444.0,0.001652]
[1729567497725,0.98598277,67445.0,67444.0,0.001652]
[1729567497982,0.89746169,67445.0,67444.0,0.001652]
[1729567498190,0.88646169,67445.0,67444.0,0.001652]
[1729567498397,0.88646169,67445.0,67444.0,0.002652]
[1729567498645,0.9760603,67445.0,67444.0,0.002652]
[1729567498863,0.9750603,67445.0,67444.0,0.001652]
[1729567499098,0.88746169,67445.0,67444.0,0.002652]
[1729567499327,0.88946169,67445.0,67444.0,0.002652]
[1729567499559,1.19921657,67445.0,67444.0,0.002652]
[1729567499772,1.19821657,67445.0,67444.0,0.002652]
[1729567500039,1.08749228,67445.0,67444.0,0.002652]
[1729567500248,1.08649228,67445.0,67444.0,0.002652]
[1729567500674,1.08749228,67445.0,67444.0,0.002652]
[1729567500895,1.087375,67445.0,67444.0,0.002652]
[1729567501095,1.086375,67445.0,67444.0,0.001652]
[1729567501306,1.085375,67445.0,67444.0,0.001652]
[1729567501529,1.086375,67445.0,67444.0,0.001652]
[1729567501781,1.085375,67445.0,67444.0,0.001652]
[1729567501997,1.087375,67445.0,67444.0,0.001652]
[1729567502685,1.09402308,67445.0,67444.0,0.001652]
[1729567503116,1.09502308,67445.0,67444.0,0.001652]
[1729567503329,1.20659066,67445.0,67444.0,0.001652]
[1729567503749,1.20559066,67445.0,67444.0,0.001652]
[1729567503981,1.20659066,67445.0,67444.0,0.001652]
[1729567504623,1.20459066,67445.0,67444.0,0.001652]
[1729567504844,1.20359066,67445.0,67444.0,0.001652]
[1729567505042,1.09456007,67445.0,67444.0,0.001652]
[1729567505279,0.98399249,67445.0,67444.0,0.001652]
[1729567505483,1.07340002,67445.0,67444.0,0.001652]
[1729567506110,1.07440002,67445.0,67444.0,0.005652]
[1729567506319,0.82251896,67445.0,67444.0,0.005652]
[1729567506954,1.07404305,67445.0,67444.0,0.005652]
[1729567507162,1.07604305,67445.0,67444.0,0.005652]
[1729567507785,1.18207364,67445.0,67444.0,0.005652]
[1729567508012,1.07404305,67445.0,67444.0,0.005652]
[1729567508242,1.07604305,67445.0,67444.0,0.005652]
[1729567508467,0.98565544,67445.0,67444.0,0.005652]
[1729567508688,0.98765544,67445.0,67444.0,0.005652]
[1729567508913,0.82451896,67445.0,67444.0,0.005652]
[1729567509146,1.0759753,67445.0,67444.0,0.005652]
[1729567509367,0.82451896,67445.0,67444.0,0.005652]
[1729567509603,0.89077425,67445.0,67444.0,0.005652]
[1729567509810,0.82451896,67445.0,67444.0,0.005652]
[1729567510264,0.88877654,67445.0,67444.0,0.005652]
[1729567510707,0.88876698,67445.0,67444.0,0.005652]
[1729567510874,0.82151896,67445.0,67444.0,0.001652]
[1729567511099,0.88676679,67445.0,67444.0,0.001652]
[1729567511307,0.88976679,67445.0,67444.0,0.001652]
[1729567512060,0.88776679,67445.0,67444.0,0.001652]
[1729567512276,0.7797362,67445.0,67444.0,0.001652]
[1729567512493,0.27339212,67445.0,67444.0,0.001652]
[1729567512920,0.26774404,67445.0,67444.0,0.003652]
[1729567513574,0.26674404,67445.0,67444.0,0.001652]
[1729567513794,0.36153328,67445.0,67444.0,0.003652]
[1729567514258,0.36053328,67445.0,67444.0,0.003652]
[1729567514474,0.36153328,67445.0,67444.0,0.003652]
[1729567516138,0.35153328,67445.0,67444.0,0.003652]
[1729567516377,0.15774404,67445.0,67444.0,0.003652]
[1729567516618,0.25274404,67445.0,67444.0,0.003652]
[1729567516844,0.00347604,67445.0,67444.0,0.097852]
[1729567517109,0.15174404,67445.0,67444.0,0.10772727]
[1729567517324,0.15174404,67445.0,67444.0,0.10972727]
[1729567517537,0.15274404,67445.0,67444.0,0.11972727]
[1729567518125,0.00447604,67445.0,67444.0,0.11972727]
[1729567518335,0.15274404,67445.0,67444.0,0.11972727]
[1729567518698,0.00447604,67445.0,67444.0,0.11972727]
[1729567518901,0.15274404,67445.0,67444.0,0.11972727]
[1729567520762,0.00447604,67445.0,67444.0,0.11972727]
[1729567521203,0.15274404,67445.0,67444.0,0.11972727]
[1729567522117,0.00447604,67445.0,67444.0,0.11972727]
[1729567522751,0.15274404,67445.0,67444.0,0.11972727]
[1729567524897,0.22798844,67445.0,67444.0,0.11972727]
[1729567525867,0.07972044,67445.0,67444.0,0.11972727]
[1729567526095,0.00447604,67445.0,67444.0,0.11972727]
[1729567526582,0.00447604,67445.0,67444.0,0.45182886]
[1729567526821,0.00447604,67445.0,67444.0,0.60078801]
[1729567527056,0.00447604,67445.0,67444.0,0.61853567]
[1729567527284,0.00447604,67445.0,67444.0,0.48275742]
[1729567527285,0.00347604,67445.0,67444.0,0.48275742]
[1729567527721,0.01747604,67445.0,67444.0,0.48375742]
[1729567527946,0.01747604,67445.0,67444.0,0.48275742]
[1729567528165,0.01747604,67445.0,67444.0,0.48375742]
[1729567528413,0.03147604,67445.0,67444.0,0.48375742]
[1729567528628,0.19548264,67445.0,67444.0,0.18452727]
[1729567528854,0.05021464,67445.0,67444.0,0.18552727]
[1729567529083,0.03347604,67445.0,67444.0,0.18552727]
[1729567529307,0.03047604,67445.0,67444.0,0.18452727]
[1729567529756,0.03047604,67445.0,67444.0,0.33379827]
[1729567530200,0.03047604,67445.0,67444.0,0.18552727]
[1729567531792,0.03047604,67445.0,67444.0,0.33379827]
[1729567532693,0.03047604,67445.0,67444.0,0.48275742]
[1729567541504,0.03047604,67445.0,67444.0,0.50051005]
[1729567544635,0.03047604,67445.0,67444.0,0.48275742]
[1729567544875,0.03047604,67445.0,67444.0,0.50052909]
[1729567545546,0.03047604,67445.0,67444.0,0.60855968]
[1729567545764,0.03047604,67445.0,67444.0,0.50052909]
[1729567549446,0.03047604,67445.0,67444.0,0.60855968]
[1729567552501,0.03047604,67445.0,67444.0,0.60857228]
[1729567554409,0.03047604,67445.0,67444.0,0.63080262]
[1729567556095,0.03047604,67445.0,67444.0,0.6308293]
[1729567557691,0.03047604,67445.0,67444.0,0.52279871]
[1729567557907,0.03047604,67445.0,67444.0,0.6308293]
[1729567559209,0.03047604,67445.0,67444.0,0.52279871]
[1729567560631,0.03047604,67445.0,67444.0,0.05356856]
[1729567560850,0.21160954,67445.0,67444.0,0.05356856]
[1729567561073,0.21160954,67445.0,67444.0,0.0313234]
[1729567561572,0.21160954,67445.0,67444.0,0.05356856]
[1729567561809,0.21160954,67445.0,67444.0,0.0313234]
[1729567562231,0.21160954,67445.0,67444.0,0.05356856]
[1729567562454,0.21160954,67445.0,67444.0,0.0313234]
[1729567562670,0.21160954,67445.0,67444.0,0.01352727]
[1729567562881,0.21160954,67445.0,67444.0,0.03132806]
[1729567563117,0.06334154,67445.0,67444.0,0.03132806]
[1729567563540,0.06334154,67445.0,67444.0,0.05357905]
[1729567563753,0.03047604,67445.0,67444.0,0.03132806]
[1729567564196,0.03047604,67445.0,67444.0,0.05357905]
[1729567564413,0.03047604,67445.0,67444.0,0.13935865]
[1729567564633,0.03047604,67445.0,67444.0,0.16160964]
[1729567564818,0.03047604,67445.0,67444.0,0.13935865]
[1729567565012,0.04851524,67445.0,67444.0,0.16160964]
[1729567565256,0.04851524,67445.0,67444.0,0.13935865]
[1729567565472,0.04851524,67445.0,67444.0,0.16160964]
[1729567565692,0.04851524,67445.0,67444.0,0.13935865]
[1729567565901,0.04851524,67445.0,67444.0,0.16160964]
[1729567566118,0.04851524,67445.0,67444.0,0.03132806]
[1729567566381,0.04851524,67445.0,67444.0,0.05357905]
[1729567566592,0.04851524,67445.0,67444.0,0.03132806]
[1729567570479,0.04851524,67445.0,67444.0,0.03132523]
[1729567578291,0.04851524,67445.0,67444.0,0.03132793]
[1729567578930,0.04851524,67445.0,67444.0,0.03132892]
[1729567579173,0.04851524,67445.0,67444.0,0.04245495]
[1729567579710,0.04851524,67445.0,67444.0,0.19072595]
[1729567582228,0.04851524,67445.0,67444.0,0.16179827]
[1729567582450,0.04851524,67445.0,67444.0,0.17960204]
[1729567582686,0.04851524,67445.0,67444.0,0.16179827]
[1729567582897,0.04851524,67445.0,67444.0,0.17960229]
[1729567588970,0.03047604,67445.0,67444.0,0.27410229]
[1729567590662,0.03047604,67445.0,67444.0,0.38213288]
[1729567591763,0.03047604,67445.0,67444.0,0.53109203]
[1729567592034,0.03047604,67445.0,67444.0,0.60749203]
[1729567594232,0.03047604,67445.0,67444.0,0.58968801]
[1729567594460,0.03047604,67445.0,67444.0,0.60748737]
[1729567598596,0.03047604,67445.0,67444.0,0.60748319]
[1729567607040,0.03047604,67445.0,67444.0,0.58968801]
[1729567607270,0.03047604,67445.0,67444.0,0.60748273]
[1729567615162,0.03047604,67445.0,67444.0,0.58968801]
[1729567615389,0.03047604,67445.0,67444.0,0.60748633]
[1729567619633,0.03047604,67445.0,67444.0,0.60748972]
[1729567621390,0.03047604,67445.0,67444.0,0.51298972]
[1729567621822,0.03047604,67445.0,67444.0,0.49518801]
[1729567622030,0.03047604,67445.0,67444.0,0.51299151]
[1729567625801,0.03047604,67445.0,67444.0,0.51299419]
[1729567629303,0.03047604,67445.0,67444.0,0.4049636]
[1729567634738,0.03047604,67445.0,67444.0,0.03133345]
[1729567634990,0.34333952,67445.0,67444.0,0.03133345]
[1729567635197,0.66308066,67445.0,67444.0,0.01352727]
[1729567635395,0.66308066,67445.0,67444.0,0.003652]
[1729567635396,0.65478668,67445.0,67444.0,0.003652]
[1729567635512,0.74355072,67445.0,67444.0,0.003652]
[1729567636911,0.4103794,67445.0,67444.0,0.003652]
[1729567637135,0.476936,67445.0,67444.0,0.003652]
[1729567637345,0.27674404,67445.0,67444.0,0.003652]
[1729567637572,0.34328459,67445.0,67444.0,0.003652]
[1729567639539,0.27674404,67445.0,67444.0,0.003652]
[1729567641498,0.32108392,67445.0,67444.0,0.003652]
[1729567642995,0.32107818,67445.0,67444.0,0.003652]
[1729567643466,0.45988939,67445.0,67444.0,0.003652]
[1729567645411,0.41555525,67445.0,67444.0,0.003652]
[1729567649319,0.27674404,67445.0,67444.0,0.003652]
[1729567657071,0.18374404,67445.0,67444.0,0.003652]
[1729567657296,0.18374404,67445.0,67444.0,0.01321205]
[1729567658802,0.18374404,67445.0,67444.0,0.003652]
[1729567660419,0.18374404,67445.0,67444.0,0.01324146]
[1729567660659,0.18374404,67445.0,67444.0,0.003652]
[1729567661077,0.18374404,67445.0,67444.0,0.01324146]
[1729567661296,0.18374404,67445.0,67444.0,0.003652]
[1729567661521,0.18374404,67445.0,67444.0,0.01324146]
[1729567661686,0.18374404,67445.0,67444.0,0.003652]
[1729567665216,0.27431607,67445.0,67444.0,0.003652]
[1729567666056,0.18374404,67445.0,67444.0,0.003652]
[1729567672403,0.17874404,67445.0,67444.0,0.003652]
[1729567673053,0.17874404,67445.0,67444.0,0.01317777]
[1729567678336,0.17874404,67445.0,67444.0,0.003652]
[1729567678542,0.17874404,67445.0,67444.0,0.01317161]
[1729567679606,0.2230621,67445.0,67444.0,0.01317161]
[1729567680814,0.2230621,67445.0,67444.0,0.003652]
[1729567681016,0.2230621,67445.0,67444.0,0.01317264]
[1729567681857,0.33292985,67445.0,67444.0,0.01317264]
[1729567682263,0.33292985,67445.0,67444.0,0.003652]
[1729567686861,0.3329667,67445.0,67444.0,0.003652]
[1729567687598,0.22309895,67445.0,67444.0,0.003652]
[1729567697080,0.22310136,67445.0,67444.0,0.003652]
[1729567699637,0.17874404,67445.0,67444.0,0.003652]